Workbook

Sheet Титул
B1: Министерство науки и высшего образования Российской Федерации
B2: Федеральное государственное учреждение
B3: "Федеральный исследовательский центр Институт прикладной математики им. М.В. Келдыша
B4: Российской академии наук"
B5: (ИПМ им. М.В. Келдыша РАН)
B6: Аспирантура
B8: План одобрен Ученым советом ИПМ им. М.В. Келдыша РАН
B9: Протокол № 11/23 "26" октября 2023г.
B12: РАБОЧИЙ УЧЕБНЫЙ ПЛАН подготовки аспирантов
B13: подготовки аспирантов
B15: по научной специальности - | G15: по научной специальности - 1.1.9 механика жидкости газа и плазмы
B17: Отдел | D17: Научно-образовательный отдел
B18: Виды деятельности: | D18: научно-исследовательская деятельность в области фундаментальной и прикладной математики, механики,
D19: естественных наук; преподавательская деятельность в области математики, механики, информатики.
B21: Форма обучения: очная
B22: Срок обучения: 4 года | I22: План разработан в соответствии с Приказом Минобрнауки РФ от 20.10.2021 N 951 "Об утверждении федеральных государственных требований к структуре программ подготовки научных и научнопедагогических кадров в аспирантуре (адъюнктуре), условиям их реализации, срокам освоения этих программ с учетом различных форм обучения, образовательных технологий и особенностей отдельных категорий аспирантов (адъюнктов)"

Sheet Календарный график
A2: 1. Календарный учебный график на 2025/26 уч. год
A4: Мес | B4: Сентябрь | F4: 29 - 5 | G4: Октябрь | J4: 27 - 2 | K4: Ноябрь | O4: Декабрь | S4: 29 - 4 | T4: Январь | W4: 26 - 1 | X4: Февраль | AA4: 23 - 1 | AB4: Март | AF4: 30 - 5 | AG4: Апрель | AJ4: 27 - 3 | AK4: Май | AO4: Июнь | AS4: 29 - 5 | AT4: Июль | AW4: 27 -2 | AX4: Август
B5: 1 - 7 | C5: 8 - 14 | D5: 15 - 21 | E5: 22 - 28 | G5: 6 - 12 | H5: 13 - 19 | I5: 20 - 26 | K5: 3 - 9 | L5: 10 - 16 | M5: 17 - 23 | N5: 24 - 30 | O5: 1 - 7 | P5: 8 - 14 | Q5: 15 - 21 | R5: 22 - 28 | T5: 5 - 11 | U5: 12 - 18 | V5: 19 - 25 | X5: 2 - 8 | Y5: 9 - 15 | Z5: 16 - 22 | AB5: 2 - 8 | AC5: 9 - 15 | AD5: 16 - 22 | AE5: 23 - 29 | AG5: 6 - 12 | AH5: 13 - 19 | AI5: 20 - 26 | AK5: 4 - 10 | AL5: 11 - 17 | AM5: 18 - 24 | AN5: 25 - 31 | AO5: 1 - 7 | AP5: 8 - 14 | AQ5: 15 - 21 | AR5: 22 - 28 | AT5: 6 - 12 | AU5: 13 - 19 | AV5: 20 - 26 | AX5: 3 - 9 | AY5: 10 - 16 | AZ5: 17 - 23 | BA5: 24 - 31
B6: 1 | C6: 2 | D6: 3 | E6: 4 | F6: 5 | G6: 6 | H6: 7 | I6: 8 | J6: 9 | K6: 10 | L6: 11 | M6: 12 | N6: 13 | O6: 14 | P6: 15 | Q6: 16 | R6: 17 | S6: 18 | T6: 19 | U6: 20 | V6: 21 | W6: 22 | X6: 23 | Y6: 24 | Z6: 25 | AA6: 26 | AB6: 27 | AC6: 28 | AD6: 29 | AE6: 30 | AF6: 31 | AG6: 32 | AH6: 33 | AI6: 34 | AJ6: 35 | AK6: 36 | AL6: 37 | AM6: 38 | AN6: 39 | AO6: 40 | AP6: 41 | AQ6: 42 | AR6: 43 | AS6: 44 | AT6: 45 | AU6: 46 | AV6: 47 | AW6: 48 | AX6: 49 | AY6: 50 | AZ6: 51 | BA6: 52
A7: I | B7: Н | C7: Н | D7: Н | E7: Н | Q7: па | R7: па | T7: К | U7: нир | V7: Н | W7: Н | AH7: кэ ан | AM7: па | AN7: па | AR7: кэ ф | AS7: нир | AT7: нир | AU7: К | AV7: К | AW7: К | AX7: К | AY7: К | AZ7: К | BA7: К
S11: К
A14: II | B14: Н | C14: Н | D14: Н | E14: Н | Q14: па | R14: па | T14: К | U14: нир | V14: Н | W14: Н | X14: Н | Y14: Н | AM14: па/ кэ сп | AN14: кэ сп | AS14: нир | AT14: нир | AU14: К | AV14: К | AW14: К | AX14: К | AY14: К | AZ14: К | BA14: К
S18: К
A21: III | B21: Н | C21: Н | D21: Н | E21: Н | Q21: па | R21: па | T21: К | U21: нир | V21: кэ сп | W21: кэ сп | X21: Н | Y21: Н | AM21: кэ сп | AN21: кэ сп | AS21: нир | AT21: нир | AU21: К | AV21: К | AW21: К | AX21: К | AY21: К | AZ21: К | BA21: К
S25: К
A28: IV | B28: Н | C28: Н | D28: Н | E28: Н | T28: К | U28: нир | V28: кэ сп | W28: кэ сп | X28: Н | Y28: Н | Z28: Н | AA28: Н | AB28: Н | AC28: Н | AD28: Н | AE28: Н | AF28: Н | AG28: Н | AH28: Н | AI28: Н | AJ28: Н | AK28: Н | AL28: Н | AM28: кэ сп | AN28: кэ сп | AO28: ИА | AP28: ИА | AQ28: ИА | AR28: ИА | AS28: ИА | AT28: ИА | AU28: ИА | AV28: ИА | AW28: К | AX28: К | AY28: К | AZ28: К | BA28: К
S32: К
V35: 1 | W35: 2 | X35: 3 | Y35: 4 | Z35: 5 | AA35: 6 | AB35: 7 | AC35: 8 | AD35: 9 | AE35: 10 | AF35: 11 | AG35: 12 | AH35: 13 | AI35: 14 | AJ35: 15 | AK35: 16 | AL35: 17 | AM35: 18 | AN35: 19 | AO35: 20
A36: 2. Сводные данные
W37: Курс 1 | AC37: Курс 2 | AI37: Курс 3 | AO37: Курс 4 | AU37: Итого
W38: сем. 1 | Y38: сем. 2 | AA38: Всего | AC38: сем. 3 | AE38: сем. 4 | AG38: Всего | AI38: сем. 5 | AK38: сем. 6 | AM38: Всего | AO38: сем. 5 | AQ38: сем. 6 | AS38: Всего
B39: Образовательная подготовка (рассред.) в т.ч. практика | W39: 6 | Y39: 6 | AA39: =W39+Y39 -> 12 | AC39: 4 | AG39: =AC39+AE39 -> 4 | AI39: 2 | AK39: 0 | AM39: =AI39+AK39 -> 2 | AQ39: 0 | AS39: =AO39+AQ39 -> 0 | AU39: =AA39+AG39+AM39+AS39 -> 18
A40: п | B40: Практика (рассред.) | AE40: 2 | AG40: =AC40+AE40 -> 2 | AU40: =AA40+AG40+AM40+AS40 -> 2
A41: Н | B41: Научные исследования | W41: 4 | Y41: 4 | AA41: =SUM(W41:Z41) -> 8 | AC41: 4 | AE41: 4 | AG41: =SUM(AC41:AF41) -> 8 | AI41: 4 | AK41: 19 | AM41: =SUM(AI41:AL41) -> 23 | AO41: 19 | AQ41: 19 | AS41: =SUM(AO41:AR41) -> 38 | AU41: 77
B42: Научные исследования (рассред.) | W42: 7 | Y42: 13 | AA42: =SUM(W42:Z42) -> 20 | AC42: 9 | AE42: 17 | AG42: =SUM(AC42:AF42) -> 26 | AI42: 11 | AM42: =SUM(AI42:AL42) -> 11 | AS42: =SUM(AO42:AR42) -> 0 | AU42: 57
A43: па,кэ, нир | B43: Промежуточная аттестация по уч.дисциплинам зачет/экзамен,КЭ, нир | W43: 2 | Y43: 2 | AA43: =SUM(W43:Z43) -> 4 | AC43: 2 | AE43: 2 | AG43: =SUM(AC43:AF43) -> 4 | AI43: 2 | AK43: 1 | AM43: =SUM(AI43:AL43) -> 3 | AS43: =SUM(AO43:AR43) -> 0 | AU43: 11
A44: ИА | B44: Итоговая аттестация | AK44: 5 | AM44: =SUM(AI44:AL44) -> 5 | AQ44: 8 | AS44: =SUM(AO44:AR44) -> 8 | AU44: 13
A45: К | B45: Каникулы | W45: 1 | Y45: 7 | AA45: =SUM(W45:Z45) -> 8 | AC45: 1 | AE45: 7 | AG45: =SUM(AC45:AF45) -> 8 | AI45: 1 | AK45: 7 | AM45: =SUM(AI45:AL45) -> 8 | AO45: 1 | AQ45: 5 | AS45: =SUM(AO45:AR45) -> 6 | AU45: 30
W47: =SUM(W39:X46) -> 20 | Y47: =SUM(Y39:Z46) -> 32 | AA47: =SUM(AA39:AB46) -> 52 | AC47: =SUM(AC39:AD46) -> 20 | AE47: =SUM(AE40:AF45) -> 32 | AG47: =SUM(AC47:AE47) -> 52 | AI47: =SUM(AI39:AJ46) -> 20 | AK47: =SUM(AK39:AL45) -> 32 | AM47: =SUM(AI47:AL47) -> 52 | AO47: =SUM(AO39:AP46) -> 20 | AQ47: =SUM(AQ39:AR45) -> 32 | AS47: =SUM(AO47:AR47) -> 52 | AU47: 208

Sheet ПланСвод
C1: Наименование | D1: Формы контроля | H1: Всего часов | Q1: Распределение ЗЕТ
H2: По ЗЕТ | I2: По плану | J2: в том числе | Q2: Курс 1 | T2: Курс 2 | W2: Курс 3 | Z2: Курс 4
D3: Экзамены | E3: Зачеты | F3: Зачеты с оценкой | G3: Рефераты | J3: Контакт. раб. (по учеб. зан.) | K3: из них | N3: СРС, в т.ч. подготовка к экз. | O3: Контроль | P3: Факт ЗЕ | Q3: Итого | R3: Сем. 1 | S3: Сем. 2 | T3: Итого | U3: Сем. 1 | V3: Сем. 2 | W3: Итого | X3: Сем. 1 | Y3: Сем. 2 | Z3: Итого | AA3: Сем. 1 | AB3: Сем. 2
K4: Лек | L4: Пр | M4: Сем
A8: 1 | C8: Образовательный компонент | H8: =P8*36 -> 1080 | I8: =I9+I12+I18+I24 -> 1080 | P8: =Q8+T8+W8+Z8 -> 30 | Q8: =Q9+Q12+Q18+Q24 -> 18 | R8: =R9+R12+R18 -> 6 | S8: =S9+S12+S18 -> 12 | T8: =T9+T12+T18+T24 -> 9 | U8: =U9+U12+U18+U24 -> 4 | V8: 5 | W8: 3 | X8: 3 | Y8: 0 | Z8: 0 | AB8: =AB9+AB12+AB18+AB24 -> 0
A9: 1.1 | C9: Дисциплины | H9: =H10+H11 -> 324 | I9: =I10+I11 -> 324 | P9: 9 | Q9: =SUM(Q10:Q11) -> 9 | R9: =SUM(R10:R11) -> 2 | S9: 7 | T9: 0 | U9: 0 | V9: 0 | W9: 0 | X9: 0
B10: 1 | C10: Иностранный язык | D10: 2 | H10: 180 | I10: 180 | J10: 40 | K10: 2 | M10: 18 | N10: 140 | P10: 5 | Q10: =R10+S10 -> 5 | R10: 2 | S10: 3
B11: 1 | C11: История и философия науки | D11: 2 | G11: + | H11: 144 | I11: 144 | J11: 16 | K11: 6 | M11: 10 | N11: 92 | O11: 36 | P11: 4 | Q11: =SUM(R11:S11) -> 4 | R11: 0 | S11: 4
A12: 1.2 | B12: 1 | C12: ДИСЦИПЛИНЫ общие | E12: 3 | F12: 2 | H12: =SUM(H13:H17) -> 288 | I12: =SUM(I13:I17) -> 288 | J12: =SUM(J13:J17) -> 62 | K12: 20 | M12: 42 | N12: =SUM(N13:N17) -> 226 | P12: 8 | Q12: =SUM(Q13:Q17) -> 3 | R12: =SUM(R13:R17) -> 2 | S12: =SUM(S14:S17) -> 1 | T12: 2 | U12: 2 | V12: 0 | W12: 3 | X12: 3
B13: 1 | C13: Методология научных исследований | E13: 1 | H13: =P13*36 -> 72 | I13: =SUM(J13:O13) -> 72 | J13: 14 | K13: 4 | M13: 10 | N13: 58 | P13: 2 | Q13: 2 | R13: 2
B14: 1 | C14: Методика написания и правила оформления научной работы | E14: 2 | H14: =P14*36 -> 36 | I14: =SUM(J14:O14) -> 36 | J14: 12 | K14: 4 | M14: 8 | N14: 24 | P14: 1 | Q14: 1 | S14: 1
B15: 1 | C15: Искусственный интеллект в научных исследованиях. | E15: 3 | H15: =P15*36 -> 36 | I15: =J15+N15+O15 -> 36 | J15: 12 | K15: 12 | N15: 24 | P15: 1 | T15: =SUM(U15:V15) -> 1 | U15: 1
B16: 1 | C16: Психология и педагогика профессиональной деятельности | E16: 4 | H16: =P16*36 -> 36 | I16: =SUM(J16:O16) -> 36 | J16: 12 | K16: 4 | M16: 8 | N16: 24 | P16: 1 | T16: =SUM(U16:V16) -> 1 | U16: 1
B17: 1 | C17: Информационные технологии в профессиональной деятельности | F17: 5 | H17: =P17*36 -> 108 | I17: =SUM(J17:O17) -> 108 | J17: 12 | K17: 4 | M17: 8 | N17: 96 | P17: 3 | W17: =SUM(X17:Y17) -> 3 | X17: 3
A18: 1.3 | B18: 1 | C18: ДИСЦИПЛИНЫ специальности:Механика жидкости, газа и плазмы | D18: 2 | E18: 3 | H18: =P18*36 -> 360 | I18: =SUM(I19:I23) -> 360 | J18: 68 | K18: 20 | M18: 48 | N18: 220 | O18: 72 | P18: =Z18+W18+T18+Q18 -> 10 | Q18: =SUM(Q19:Q23) -> 6 | R18: =SUM(R19:R23) -> 2 | S18: =SUM(S20:S23) -> 4 | T18: =SUM(T19:T23) -> 4 | U18: =SUM(U19:U23) -> 2 | V18: =SUM(V19:V23) -> 2
B19: 1 | C19: Радиационнаягазовая динамика | E19: 1 | H19: 72 | I19: =SUM(J19:O19) -> 72 | J19: 14 | K19: 4 | M19: 10 | N19: 58 | P19: 2 | Q19: 2 | R19: 2
B20: 1 | C20: Численные методы динамики газов и неравновесного переноса частиц/ Введение в механику сплошной среды и вычислительную газовую динамику | E20: 2 | H20: 72 | I20: =SUM(J20:O20) -> 72 | J20: 12 | K20: 4 | M20: 8 | N20: 60 | P20: 2 | Q20: 2 | S20: 2
B21: 1 | C21: Методы анализа математических моделей | D21: 2 | H21: 72 | I21: =SUM(J21:O21) -> 72 | J21: 14 | K21: 4 | M21: 10 | N21: 22 | O21: 36 | P21: 2 | Q21: 2 | S21: 2
B22: 1 | C22: Механика и электродинамика сплошных сред | E22: 4 | H22: 72 | I22: =SUM(J22:O22) -> 72 | J22: 14 | K22: 4 | M22: 10 | N22: 58 | P22: 2 | T22: 2 | V22: 2
B23: 1 | C23: Динамика и кинетическая теория газов и плазмы/ / Спецдисциплина 4 | D23: 3 | H23: 72 | I23: =SUM(J23:O23) -> 72 | J23: 14 | K23: 4 | M23: 10 | N23: 22 | O23: 36 | P23: 2 | T23: 2 | U23: 2
A24: 1.4 | B24: 1 | C24: Практика | F24: 4 | H24: 108 | I24: 108 | N24: 90 | P24: =Q24+T24+W24+Z24 -> 3 | T24: =SUM(U24:V24) -> 3 | V24: 3
A25: 2 | C25: Научно-исследовательская работа | H25: =P25*36 -> 7380 | I25: =I26+I27 -> 7380 | N25: =P25*36-50*4 -> 7180 | P25: =Q25+T25+W25+Z25 -> 205 | Q25: =Q26+Q27 -> 42.0 | R25: 19.5 | S25: =S26+S27 -> 22.5 | T25: 51.0 | U25: 21.5 | V25: 29.5 | W25: 57.0 | X25: 22.5 | Y25: 34.5 | Z25: 55.0 | AA25: 25.5 | AB25: =AB26+AB27 -> 29.5
B26: 1 | C26: Научно-исследовательская работа аспиранта, направленная на подготовку диссертациии на соискание ученой степени кандидата наук к защите | F26: 1-8 | H26: =P26*36 -> 6840 | I26: =P26*36 -> 6840 | P26: =Q26+T26+W26+Z26 -> 190 | Q26: =R26+S26 -> 39.0 | R26: 18.5 | S26: 20.5 | T26: =U26+V26 -> 47.0 | U26: 19.5 | V26: 27.5 | W26: =X26+Y26 -> 52.0 | X26: 20.5 | Y26: 31.5 | Z26: =AA26+AB26 -> 52.0 | AA26: 23.5 | AB26: 28.5
B27: 1 | C27: Подготовка публикаций и (или) заявок на патенты на изобретения | F27: 1-8 | H27: =P27*36 -> 540 | I27: =P27*36 -> 540 | P27: =Q27+T27+W27+Z27 -> 15 | Q27: =R27+S27 -> 3.0 | R27: 1.0 | S27: 2.0 | T27: =U27+V27 -> 4.0 | U27: 2.0 | V27: 2.0 | W27: =X27+Y27 -> 5.00 | X27: 2.0 | Y27: 3.0 | Z27: =AA27+AB27 -> 3.0 | AA27: 2.0 | AB27: 1.0
A28: 3 | B28: 1 | C28: Итоговая аттестация | H28: =P28*36 -> 180 | I28: =P28*36 -> 180 | P28: =Q28+T28+W28+Z28 -> 5 | Z28: =AA28+AB28 -> 5.0 | AB28: 5.0
C29: Итого | H29: =P29*36 -> 8640 | I29: =I28+I25+I8 -> 8640 | K29: 6 | P29: =P25+P8+P28 -> 240 | Q29: =Q8+Q25+Q28 -> 60.0 | R29: =R8+R25+R28 -> 25.5 | S29: 34.5 | T29: 60.0 | U29: 25.5 | V29: 34.5 | W29: 60.0 | X29: 25.5 | Y29: 34.5 | Z29: 60.0 | AA29: 25.5 | AB29: 34.5

Sheet План
C1: Наименование | D1: Формы контроля | H1: Всего часов | N1: Распределение по курсам и семестрам
H2: По ЗЕТ | I2: По плану | J2: в том числе | M2: з.е. факт. | N2: Курс 1 | AD2: Курс 2 | AT2: Курс 3 | BJ2: Курс 4
D3: Экзамены | E3: Зачеты | F3: Зачеты с оценкой | G3: Рефераты | J3: Контакт. раб. (по учеб. зан.) | K3: СРС | L3: Контроль | N3: Всего | Q3: Всего | T3: Семестр 1 [12 нед] | Y3: Семестр 2 [21 нед] | AD3: Всего | AG3: Всего | AJ3: Семестр 3 [8 нед] | AO3: Семестр 4 [23 нед] | AT3: Всего | AW3: Всего | AZ3: Семестр 5 [15 нед] | BE3: Семестр 6 [23 нед] | BJ3: Всего | BM3: Всего | BP3: Семестр 7 [ нед] | BS3: Семестр 8 [ нед]
T4: Лек | U4: Сем | V4: СРС | W4: Контроль | X4: ЗЕТ | Y4: Лек | Z4: Сем | AA4: СРС | AB4: Контроль | AC4: ЗЕТ | AJ4: Лек | AK4: Сем | AL4: СРС | AM4: Контроль | AN4: ЗЕТ | AO4: Лек | AP4: Сем | AQ4: СРС | AR4: Контроль | AS4: ЗЕТ | AZ4: Лек | BA4: Сем | BB4: СРС | BC4: Контроль | BD4: ЗЕТ | BE4: Лек | BF4: Сем | BG4: СРС | BH4: Контроль | BI4: ЗЕТ | BQ4: СРС | BR4: ЗЕТ | BT4: СРС | BU4: ЗЕТ
N5: Часов | O5: Ауд | P5: ЗЕТ | Q5: Часов | R5: Ауд | S5: ЗЕТ | AD5: Часов | AE5: Ауд | AF5: ЗЕТ | AG5: Часов | AH5: Ауд | AI5: ЗЕТ | AT5: Часов | AU5: Ауд | AV5: ЗЕТ | AW5: Часов | AX5: Ауд | AY5: ЗЕТ | BJ5: Часов | BK5: Ауд | BL5: ЗЕТ | BM5: Часов | BN5: Ауд | BO5: ЗЕТ
C7: Итого на подготовку аспиранта | D7: 5 | E7: 7 | F7: 4 | H7: 8640 | I7: =I8+I28+I31 -> 8640 | J7: =J8+J28+J31 -> 208 | K7: =K8+K28+K31 -> 8684 | L7: =L8+L28+L31 -> 144 | M7: =S7+AI7+AY7+BO7 -> 240 | N7: 2,160 | O7: 102 | P7: 60 | S7: =X7+AC7 -> 60.0 | X7: =X8+X28 -> 22.5 | AC7: =AC8+AC28 -> 37.5 | AD7: 2160 | AE7: 40 | AF7: 60 | AI7: =AN7+AS7 -> 60.0 | AN7: =AN8+AN28 -> 25.5 | AS7: =AS8+AS28 -> 34.5 | AT7: 2160 | AU7: 24 | AV7: 60 | AY7: =BD7+BI7 -> 60.0 | BD7: =BD8+BD28 -> 25.5 | BI7: =BI8+BI28 -> 34.5 | BJ7: 2160 | BK7: 6 | BL7: 60 | BO7: =BR7+BU7 -> 60.0 | BR7: =BR8+BR28 -> 25.5 | BU7: =BU8+BU28+BU31 -> 34.5
B8: 1 | C8: Образовательный компонент | D8: 5 | E8: 7 | F8: 4 | H8: 8640 | I8: =I9+I12+I18+I26 -> 1080 | J8: 172 | K8: 4868 | L8: =L9+L12+L18 -> 144 | M8: =M9+M12+M18+M26 -> 30 | N8: 2,160 | O8: 102 | P8: 60 | S8: =X8+AC8 -> 18 | T8: =T9+T12+T18+T26 -> 8 | U8: =U9+U12+U18+U26 -> 40 | V8: =V9+V12+V18+V26 -> 168 | W8: 0 | X8: 6 | Y8: 18 | Z8: 56 | AA8: 250 | AB8: 108 | AC8: =AC9+AC12+AC18+AC26 -> 12 | AD8: 2160 | AE8: 40 | AF8: 60 | AI8: =AN8+AS8 -> 9 | AJ8: =AJ9+AJ12+AJ18+AJ26 -> 12 | AK8: =AK9+AK12+AK18+AK26 -> 26 | AL8: =AL9+AL12+AL18+AL26 -> 160 | AM8: =AM9+AM12+AM18+AM26 -> 36 | AN8: =AN9+AN12+AN18+AN26 -> 4 | AO8: =AO9+AO12+AO18 -> 4 | AP8: =AP9+AP12+AP18 -> 10 | AQ8: =AQ9+AQ12+AQ18 -> 58 | AR8: =AR9+AR12+AR18 -> 0 | AS8: =AS9+AS12+AS18+AS26 -> 5 | AT8: 2160 | AU8: 24 | AV8: 60 | AY8: =BD8+BI8 -> 3 | AZ8: =AZ9+AZ12+AZ18 -> 4 | BA8: =BA9+BA12+BA18 -> 8 | BB8: =BB9+BB12+BB18 -> 96 | BC8: =BC9+BC12+BC18 -> 0 | BD8: =BD9+BD12+BD26 -> 3 | BJ8: 2160 | BK8: 6 | BL8: 60
B9: 1.1 | C9: Дисциплины/модули (Базовая часть) | D9: 4 | E9: 6 | F9: 2 | G9: + | H9: =SUM(H10:H11) -> 324 | I9: 324 | J9: 56 | K9: 196 | L9: 72 | M9: 9 | N9: 648 | O9: 102 | P9: 18 | T9: =SUM(T10:T11) -> 0 | U9: =SUM(U10:U11) -> 20 | V9: 52 | W9: 0 | X9: 2 | Y9: 6 | Z9: 30 | AA9: 144 | AB9: 72 | AC9: =SUM(AC10:AC11) -> 7 | AD9: 216 | AE9: 40 | AF9: 6
A10: 1 | B10: 1.1.1 | C10: Иностранный язык | D10: 1 | H10: =M10*36 -> 180 | I10: =J10+K10+L10 -> 180 | J10: 40 | K10: =V10+AA10 -> 104 | L10: 36 | M10: =X10+AC10 -> 5 | N10: 180 | O10: 20 | P10: 5 | Q10: =T10+U10+V10+Y10+Z10+AA10 -> 144 | R10: =T10+U10+Y10+Z10 -> 40 | S10: =X10+AC10 -> 5 | U10: 20 | V10: 52 | X10: 2 | Z10: 20 | AA10: 52 | AB10: 36 | AC10: 3
A11: 1 | B11: 1.1.2 | C11: История и философия науки | D11: 2 | G11: + | H11: =M11*36 -> 144 | I11: =J11+K11+L11 -> 144 | J11: =Y11+Z11 -> 16 | K11: =V11+AA11 -> 92 | L11: 36 | M11: =X11+AC11 -> 4 | N11: 144 | O11: 16 | P11: 4 | Y11: 6 | Z11: 10 | AA11: 92 | AB11: 36 | AC11: 4
B12: 1.2. | C12: ДИСЦИПЛИНЫ ОБЩИЕ | D12: 2 | E12: 6 | F12: 2 | H12: =M12*36 -> 288 | I12: =SUM(I13:I17) -> 288 | J12: =SUM(J13:J17) -> 38 | K12: =SUM(K13:K17) -> 106 | L12: =SUM(L13:L17) -> 0 | M12: =S12+AI12+AY12+BO12 -> 8 | N12: =#REF!+#REF!+N13+N14 ->  | P12: =SUM(P13:P14) -> 18 | Q12: =SUM(Q13:Q17) -> 108 | R12: =SUM(R13:R17) -> 26 | S12: 3 | T12: 4 | U12: 10 | V12: 58 | W12: 0 | X12: 2 | Y12: 4 | Z12: 8 | AA12: 24 | AB12: 0 | AC12: =SUM(AC13:AC17) -> 1 | AD12: 216 | AE12: 40 | AF12: 6 | AG12: =SUM(AG13:AG17) -> 72 | AH12: =SUM(AH13:AH17) -> 24 | AI12: =AN12+AS12 -> 2 | AJ12: 8 | AK12: 16 | AL12: 48 | AM12: 0 | AN12: 2 | AO12: 0 | AP12: 0 | AQ12: 0 | AR12: 0 | AS12: 0 | AT12: 216 | AU12: 24 | AV12: 6 | AY12: =BD12+BI12 -> 3 | AZ12: =SUM(AZ13:AZ17) -> 4 | BA12: =SUM(BA13:BA17) -> 8 | BB12: =SUM(BB13:BB17) -> 96 | BC12: =SUM(BC13:BC17) -> 0 | BD12: =SUM(BD13:BD17) -> 3
B13: 1.2.1 | C13: Методология научных исследований | E13: 1 | H13: =M13*36 -> 72 | I13: =L13+K13+J13 -> 72 | J13: 14 | K13: 58 | M13: 2 | N13: =P13*36 -> 360 | O13: 14 | P13: =U13+Z13 -> 10 | Q13: =T13+U13+V13+W13+Y13+Z13+AA13+AB13 -> 72 | R13: =T13+U13+Y13+Z13 -> 14 | S13: =X13+AC13 -> 2 | T13: 4 | U13: 10 | V13: 58 | X13: 2 | AY13: 0
A14: 1 | B14: 1.2.2 | C14: Методика написания и правила оформления научной работы | E14: 2 | H14: 36 | I14: =L14+K14+J14 -> 36 | J14: 12 | K14: 24 | M14: 1 | N14: =P14*36 -> 288 | O14: 12 | P14: =Z14 -> 8 | Q14: =T14+U14+V14+W14+Y14+Z14+AA14+AB14 -> 36 | R14: 12 | S14: 1 | Y14: 4 | Z14: 8 | AA14: 24 | AC14: 1 | AY14: 0
A15: 1 | B15: 1.2.3 | C15: Психология и педагогтика профессиональной деятельности | E15: 3 | H15: =M15*36 -> 36 | I15: =L15+K15+J15 -> 36 | J15: 12 | K15: 24 | M15: 1 | N15: =P15*36 -> 0 | Q15: =T15+U15+V15+W15+Y15+Z15+AA15+AB15 -> 0 | AD15: 72 | AE15: 12 | AF15: 2 | AG15: =AI15*36 -> 36 | AH15: =AJ15+AK15 -> 12 | AI15: =AN15+AS15+AS15 -> 1 | AJ15: 4 | AK15: 8 | AL15: 24 | AN15: 1 | AY15: 0
A16: 1 | B16: 1.2.4 | C16: Искусственный интеллект в научных исследованиях. | D16: 3 | H16: 36 | I16: =L16+K16+J16 -> 36 | J16: 12 | K16: 24 | M16: 1 | N16: =P16*36 -> 0 | Q16: =T16+U16+V16+W16+Y16+Z16+AA16+AB16 -> 0 | AG16: =AI16*36 -> 36 | AH16: =AJ16+AK16 -> 12 | AI16: =AN16+AS16+AS16 -> 1 | AJ16: 4 | AK16: 8 | AL16: 24 | AN16: 1 | AT16: 108 | AU16: 12 | AV16: 3 | AY16: 0
A17: 1 | B17: 1.2.5 | C17: Информационные технологии в профессиональной деятельности (для гр. н.с 1.1.) | F17: 5 | H17: 108 | I17: =J17+K17 -> 108 | J17: 12 | K17: 96 | M17: 3 | Q17: =T17+U17+V17+W17+Y17+Z17+AA17+AB17 -> 0 | AT17: 108 | AU17: 12 | AV17: 3 | AY17: 3 | AZ17: 4 | BA17: 8 | BB17: 96 | BD17: 3
A18: 1 | B18: 1.3 | C18: Вариативная часть ДИСЦИПЛИНЫ специальности (образовательной программы): Механика жидкости, газа и плазмы | D18: 2 | E18: 3 | H18: =SUM(H19:H23) -> 360 | I18: =SUM(I19:I23) -> 360 | J18: =SUM(J19:J23) -> 68 | K18: =SUM(K19:K23) -> 220 | L18: =SUM(L19:L23) -> 72 | M18: 10 | N18: 216 | O18: 40 | P18: 6 | Q18: =SUM(Q19:Q23) -> 0 | R18: =SUM(R19:R23) -> 0 | S18: 0 | T18: 4 | U18: 10 | V18: 58 | W18: 0 | X18: 2 | Y18: 8 | Z18: 18 | AA18: 82 | AB18: 36 | AC18: 4 | AD18: 144 | AE18: 28 | AF18: 4 | AJ18: 4 | AK18: 10 | AL18: 22 | AM18: 36 | AN18: 2 | AO18: 4 | AP18: 10 | AQ18: 58 | AS18: 2
A19: 1 | B19: 1.3.1 | C19: Радиационная газовая динамика | E19: 1 | H19: 72 | I19: =J19+K19+L19 -> 72 | J19: 14 | K19: 58 | M19: 2 | N19: 72 | O19: 14 | P19: 2 | T19: 4 | U19: 10 | V19: 58 | X19: 2
A20: 1 | B20: 1.3.2 | C20: Численные методы динамики газов и неравновесного переноса частиц/ Введение в механику сплошной среды и вычислительную газовую динамику | E20: 2 | H20: 72 | I20: =J20+K20+L20 -> 72 | J20: 12 | K20: 60 | M20: 2 | N20: 72 | O20: 12 | P20: 2 | Y20: 4 | Z20: 8 | AA20: 60 | AC20: 2
A21: 1 | B21: 1.3.3 | C21: Методы анализа математических моделей | D21: 2 | H21: 72 | I21: =J21+K21+L21 -> 72 | J21: 14 | K21: 22 | L21: 36 | M21: 2 | N21: 72 | O21: 14 | P21: 2 | Y21: 4 | Z21: 10 | AA21: 22 | AB21: 36 | AC21: 2
A22: 1 | B22: 1.3.4 | C22: Механика и электродинамика сплошных сред | E22: 4 | H22: 72 | I22: =J22+K22+L22 -> 72 | J22: 14 | K22: 58 | M22: 2 | AD22: 72 | AE22: 14 | AF22: 2 | AO22: 4 | AP22: 10 | AQ22: 58 | AS22: 2
A23: 1 | B23: 1.3.5 | C23: Динамика и кинетическая теория газов и плазмы/ Спецдисциплина 4 | D23: 3 | H23: 72 | I23: =J23+K23+L23 -> 72 | J23: 14 | K23: 22 | L23: 36 | M23: 2 | AD23: 72 | AE23: 14 | AF23: 2 | AJ23: 4 | AK23: 10 | AL23: 22 | AM23: 36 | AN23: 2
C24: Наименование | H24: Всего часов | Q24: Всего | T24: Семестр 1 | Y24: Семестр 2 | AD24: Всего | AG24: Всего | AJ24: Семестр 3 | AO24: Семестр 4 | AT24: Всего | AW24: Всего | AZ24: Семестр 5 | BE24: Семестр 6 | BJ24: Часов | BK24: Ауд | BL24: ЗЕТ | BM24: Всего | BP24: Семестр 7 | BS24: Семестр 8
H25: По ЗЕТ | I25: По плану | J25: Контакт.р. | N25: СР | O25: ЗЕТ | P25: Факт | Q25: Часов | S25: ЗЕТ | T25: часов | V25: СРС | X25: ЗЕТ | Y25: часов | AA25: СРС | AC25: ЗЕТ | AD25: часов | AF25: ЗЕТ | AG25: часов | AI25: ЗЕТ | AJ25: часов | AL25: СРС | AN25: ЗЕТ | AO25: часов | AQ25: СРС | AS25: ЗЕТ | AT25: часов | AV25: ЗЕТ | AW25: часов | AY25: ЗЕТ | AZ25: часов | BB25: СРС | BD25: ЗЕТ | BE25: часов | BG25: СРС | BI25: ЗЕТ | BM25: часов | BO25: ЗЕТ | BP25: часов | BQ25: СРС | BR25: ЗЕТ | BS25: часов | BT25: СРС | BU25: ЗЕТ
B26: 1.4 | C26: Практики | F26: 1 | H26: =P26*36 -> 108 | I26: =H26 -> 108 | J26: =J27 -> 90 | M26: =M27 -> 3 | N26: =AL26 -> 90 | P26: =P27 -> 3 | AG26: =AI26*36 -> 108 | AI26: =AI27 -> 3 | AL26: =AL27 -> 90 | AO26: =SUM(AO27) -> 108 | AQ26: =AQ27 -> 90 | AS26: =AS27 -> 3
B27: 1.4.1 | C27: Научно-педагогическая практика | F27: 4 | H27: =P27*36 -> 108 | I27: =H27 -> 108 | J27: =AQ27 -> 90 | M27: =S27+AI27+AY27+BO27 -> 3 | N27: =AL27 -> 90 | P27: 3 | AG27: =AI27*36 -> 108 | AI27: =AN27+AS27 -> 3 | AL27: =AG27-18 -> 90 | AO27: =AS27*36 -> 108 | AQ27: 90 | AS27: 3 | AT27: 108 | AV27: 3
B28: 2 | C28: Научные исследования | H28: =M28*36 -> 7380 | I28: =I29+I30 -> 7380 | K28: =K29+K30 -> 3672 | M28: =S28+AI28+AY28+BO28 -> 205 | N28: 1,512 | P28: 42 | Q28: =S28*36 -> 1512 | S28: =X28+AC28 -> 42 | T28: =T29+T30 -> 594 | V28: =T28-20 -> 574 | X28: =X29+X30 -> 16.5 | Y28: =Y29+Y30 -> 918 | AA28: =Y28-30 -> 888 | AC28: =AC29+AC30 -> 25.5 | AD28: 1,944 | AF28: 54 | AG28: =AI28*36 -> 1836 | AI28: =AN28+AS28 -> 51.0 | AJ28: =AN28*36 -> 774 | AK28: 756 | AL28: =AJ28-20 -> 754 | AN28: =AN29+AN30 -> 21.5 | AO28: =AO29+AO30 -> 1,062 | AQ28: 972 | AS28: =AS29+AS30 -> 29.5 | AT28: 1,620 | AV28: 45 | AW28: =AY28*36 -> 2052 | AY28: =BD28+BI28 -> 57.0 | AZ28: =AZ29+AZ30 -> 810 | BB28: =AZ28-20 -> 790 | BD28: =BD29+BD30 -> 22.5 | BE28: =BE29+BE30 -> 1,242 | BG28: =BE28-30 -> 1,212 | BI28: =BI29+BI30 -> 34.5 | BJ28: 1,836 | BL28: 51 | BM28: =BO28*36 -> 1980 | BO28: =BR28+BU28 -> 55 | BP28: =BR28*36 -> 918 | BR28: =BR29+BR30 -> 25.5 | BS28: =BS29+BS30 -> 1062.0 | BT28: =BS28-30 -> 1032 | BU28: =BU29+BU30 -> 29.5
A29: 1 | B29: 2.1 | C29: Научно-исследовательская работа аспиранта, направленная на подготовку диссертациии на соискание ученой степени кандидата наук к защите | F29: 1-8 | H29: =M29*36 -> 6840 | I29: =M29*36 -> 6840 | K29: =L29*36 -> 3672 | L29: 102 | M29: =S29+AI29+AY29+BO29 -> 190 | N29: 1,080 | P29: 30 | Q29: =S29*36 -> 1404 | S29: =X29+AC29 -> 39 | T29: =X29*36 -> 558 | X29: 15.5 | Y29: =AC29*36 -> 846.0 | AA29: 702 | AC29: 23.5 | AD29: 1296 | AF29: 36 | AG29: =AI29*36 -> 1692 | AI29: =AN29+AS29 -> 47.0 | AJ29: =AN29*36 -> 702 | AN29: 19.5 | AO29: =AS29*36 -> 990 | AQ29: 972 | AS29: 27.5 | AT29: 1296.00 | AV29: 36 | AW29: =AY29*36 -> 1872 | AY29: =BD29+BI29 -> 52 | AZ29: =BD29*36 -> 738 | BD29: 20.5 | BE29: =BI29*36 -> 1134 | BI29: 31.5 | BM29: =BO29*39 -> 2028 | BO29: =BR29+BU29 -> 52 | BP29: =BR29*36 -> 846 | BR29: 23.5 | BS29: =BU29*36 -> 1026 | BU29: 28.5
A30: 1 | B30: 2.2 | C30: Подготовка публикаций и (или) заявок на патенты на изобретения | F30: 1-8 | H30: =M30*36 -> 540 | I30: =M30*36 -> 540 | M30: =S30+AI30+AY30+BO30 -> 15 | N30: 432 | P30: 12 | Q30: =S30*36 -> 108 | S30: =X30+AC30 -> 3 | T30: =X30*36 -> 36 | X30: 1 | Y30: =AC30*36 -> 72.0 | AC30: 2 | AD30: 648.0 | AF30: 18 | AG30: =AI30*36 -> 144 | AI30: =AN30+AS30 -> 4.0 | AJ30: =AN30*36 -> 72 | AN30: 2.0 | AO30: =AS30*36 -> 72 | AS30: 2.0 | AT30: 324.0 | AV30: 9 | AW30: =AY30*36 -> 180 | AY30: =BD30+BI30 -> 5 | AZ30: =BD30*36 -> 72 | BD30: 2.0 | BE30: =BI30*36 -> 108 | BI30: 3.0 | BJ30: 1836.0 | BL30: 51 | BM30: =BO30*39 -> 117 | BO30: =BR30+BU30 -> 3 | BP30: =BR30*36 -> 72 | BR30: 2.0 | BS30: =BU30*36 -> 36.0 | BU30: 1.0
B31: 3 | C31: Итоговая аттестация | H31: =M31*36 -> 180 | I31: =P31*36 -> 180 | J31: 36 | K31: 144 | M31: 5 | N31: =P31*36 -> 180 | P31: 5 | AW31: =AY31*36 -> 0 | AY31: =BB31+BE31 -> 0 | BJ31: 1837.0 | BL31: 52 | BM31: =BO31*36 -> 180 | BO31: =BR31+BU31 -> 5 | BU31: 5

Sheet Start (hidden)
